[Event "Early-Titled-Tuesday-Blitz-June-18-2024"]
[Site "Chess.com"]
[Date "2024.06.18"]
[Round "11"]
[White "WiktoriaPOL"]
[Black "shirovin"]
[Result "1-0"]
[WhiteElo "2398"]
[BlackElo "2123"]
[TimeControl "180+1"]
[EndTime "10:07:50 PDT"]
[Termination "WiktoriaPOL won by checkmate"]

1. c4 {[%clk 0:03:00.9]} 1... f5 {[%clk 0:02:59]} 2. Nc3 {[%clk 0:02:59.4]} 2...
Nf6 {[%clk 0:02:59.6]} 3. g3 {[%clk 0:02:58.7]} 3... g6 {[%clk 0:02:59.9]} 4.
Bg2 {[%clk 0:02:59]} 4... Bg7 {[%clk 0:03:00.3]} 5. e3 {[%clk 0:02:59.3]} 5...
O-O {[%clk 0:02:59.6]} 6. Nge2 {[%clk 0:02:59.6]} 6... d6 {[%clk 0:02:57]} 7.
O-O {[%clk 0:02:59.6]} 7... e5 {[%clk 0:02:57.2]} 8. d3 {[%clk 0:02:59.9]} 8...
Nc6 {[%clk 0:02:55.8]} 9. Rb1 {[%clk 0:02:57.3]} 9... a5 {[%clk 0:02:54.7]} 10.
a3 {[%clk 0:02:56.5]} 10... h6 {[%clk 0:02:51.5]} 11. b4 {[%clk 0:02:56.7]}
11... axb4 {[%clk 0:02:51.2]} 12. axb4 {[%clk 0:02:57.6]} 12... g5 {[%clk
0:02:51.1]} 13. b5 {[%clk 0:02:57.7]} 13... Ne7 {[%clk 0:02:48.8]} 14. f4 {[%clk
0:02:55.7]} 14... Qe8 {[%clk 0:02:42.8]} 15. Qb3 {[%clk 0:02:49]} 15... Kh8
{[%clk 0:02:39.9]} 16. Bb2 {[%clk 0:02:40.3]} 16... Qh5 {[%clk 0:02:32.2]} 17.
h3 {[%clk 0:02:13.8]} 17... Rb8 {[%clk 0:02:08.7]} 18. Ba3 {[%clk 0:02:06.4]}
18... b6 {[%clk 0:01:58.6]} 19. fxe5 {[%clk 0:02:04.3]} 19... Ne8 {[%clk
0:01:42.7]} 20. exd6 {[%clk 0:01:57.5]} 20... Nxd6 {[%clk 0:01:41.5]} 21. Bb2
{[%clk 0:01:42.2]} 21... Bb7 {[%clk 0:01:38.8]} 22. Qc2 {[%clk 0:01:23.5]} 22...
Bxg2 {[%clk 0:01:34.3]} 23. Kxg2 {[%clk 0:01:24.4]} 23... f4 {[%clk 0:01:28]}
24. exf4 {[%clk 0:01:21.6]} 24... Nef5 {[%clk 0:01:13.6]} 25. Nd5 {[%clk
0:01:18]} 25... g4 {[%clk 0:00:59.8]} 26. Bxg7+ {[%clk 0:01:11.5]} 26... Kxg7
{[%clk 0:00:58.5]} 27. Qb2+ {[%clk 0:01:03.3]} 27... Kh7 {[%clk 0:00:36]} 28. h4
{[%clk 0:00:53.9]} 28... Qf7 {[%clk 0:00:22.2]} 29. Nec3 {[%clk 0:00:46.4]}
29... Rbe8 {[%clk 0:00:19.9]} 30. Rbe1 {[%clk 0:00:45.4]} 30... Nd4 {[%clk
0:00:13.8]} 31. Ne4 {[%clk 0:00:38.3]} 31... Nf3 {[%clk 0:00:12.1]} 32. Nef6+
{[%clk 0:00:30.1]} 32... Kg6 {[%clk 0:00:10]} 33. h5+ {[%clk 0:00:25.4]} 33...
Kf5 {[%clk 0:00:03.5]} 34. Rxe8 {[%clk 0:00:20.4]} 34... Rxe8 {[%clk 0:00:02.3]}
35. Nxe8 {[%clk 0:00:17.7]} 35... Qxe8 {[%clk 0:00:02.2]} 36. Qf6# {[%clk
0:00:16.8]} 1-0

[Event "Early-Titled-Tuesday-Blitz-June-18-2024"]
[Site "Chess.com"]
[Date "2024.06.18"]
[Round "11"]
[White "sammartin99"]
[Black "Xavier_mompel"]
[Result "1-0"]
[WhiteElo "2343"]
[BlackElo "2428"]
[TimeControl "180+1"]
[EndTime "10:07:52 PDT"]
[Termination "sammartin99 won on time"]

1. d4 {[%clk 0:02:59.6]} 1... d5 {[%clk 0:03:00]} 2. c4 {[%clk 0:02:59]} 2... e6
{[%clk 0:03:00.6]} 3. Nc3 {[%clk 0:02:58.8]} 3... Nf6 {[%clk 0:03:01]} 4. cxd5
{[%clk 0:02:59.1]} 4... exd5 {[%clk 0:03:00.9]} 5. Bg5 {[%clk 0:02:59.2]} 5...
c6 {[%clk 0:03:01.5]} 6. e3 {[%clk 0:02:59.4]} 6... h6 {[%clk 0:03:01.2]} 7. Bh4
{[%clk 0:02:58.8]} 7... Be7 {[%clk 0:03:01.3]} 8. Bd3 {[%clk 0:02:58.5]} 8...
O-O {[%clk 0:03:01.3]} 9. Qc2 {[%clk 0:02:58]} 9... Re8 {[%clk 0:03:01.1]} 10.
Nge2 {[%clk 0:02:55.5]} 10... Nbd7 {[%clk 0:02:59.1]} 11. f3 {[%clk 0:02:52.5]}
11... c5 {[%clk 0:02:53.1]} 12. O-O {[%clk 0:02:49.3]} 12... Nf8 {[%clk
0:02:43.4]} 13. Rae1 {[%clk 0:02:46.3]} 13... Ne6 {[%clk 0:02:41.5]} 14. Bf2
{[%clk 0:02:43.8]} 14... a6 {[%clk 0:02:31.1]} 15. dxc5 {[%clk 0:02:34.8]} 15...
Bxc5 {[%clk 0:02:20.1]} 16. Nd4 {[%clk 0:02:11.5]} 16... Nxd4 {[%clk 0:02:18.9]}
17. exd4 {[%clk 0:02:12.4]} 17... Bd6 {[%clk 0:02:17.8]} 18. Qb3 {[%clk
0:02:09.5]} 18... Be6 {[%clk 0:01:35.1]} 19. Qxb7 {[%clk 0:01:51.1]} 19... Rb8
{[%clk 0:01:30.1]} 20. Qxa6 {[%clk 0:01:51.1]} 20... Rxb2 {[%clk 0:01:26.9]} 21.
Bh4 {[%clk 0:01:40.1]} 21... Qc7 {[%clk 0:01:03.7]} 22. Ne2 {[%clk 0:01:26.1]}
22... Bxh2+ {[%clk 0:00:57.5]} 23. Kh1 {[%clk 0:01:26.3]} 23... g5 {[%clk
0:00:57.7]} 24. Rc1 {[%clk 0:01:14.5]} 24... Qb8 {[%clk 0:00:49.9]} 25. Bf2
{[%clk 0:01:09.9]} 25... Bd6 {[%clk 0:00:39.9]} 26. Rb1 {[%clk 0:01:01]} 26...
Bf8 {[%clk 0:00:31.3]} 27. a4 {[%clk 0:00:54.1]} 27... g4 {[%clk 0:00:26.6]} 28.
Bg3 {[%clk 0:00:51.5]} 28... Qb4 {[%clk 0:00:18.6]} 29. Qb5 {[%clk 0:00:41]}
29... Rxb1 {[%clk 0:00:04.3]} 30. Rxb1 {[%clk 0:00:38.3]} 30... Qxb5 {[%clk
0:00:04.3]} 31. axb5 {[%clk 0:00:37.9]} 31... gxf3 {[%clk 0:00:04.7]} 32. gxf3
{[%clk 0:00:38.2]} 32... Bd7 {[%clk 0:00:04.7]} 33. b6 {[%clk 0:00:36.6]} 33...
Nh5 {[%clk 0:00:05.3]} 34. Bh2 {[%clk 0:00:31.4]} 34... f5 {[%clk 0:00:05.8]}
35. b7 {[%clk 0:00:31.2]} 35... f4 {[%clk 0:00:04.9]} 36. b8=Q {[%clk
0:00:30.7]} 36... Rxb8 {[%clk 0:00:03.1]} 37. Rxb8 {[%clk 0:00:31.6]} 37... Kf7
{[%clk 0:00:03.7]} 38. Nxf4 {[%clk 0:00:30.6]} 38... Nxf4 {[%clk 0:00:03.2]} 39.
Bxf4 {[%clk 0:00:31.5]} 39... Be7 {[%clk 0:00:03.3]} 40. Rb7 {[%clk 0:00:30.5]}
40... Be6 {[%clk 0:00:03.3]} 41. Bd6 {[%clk 0:00:30]} 1-0

[Event "Early-Titled-Tuesday-Blitz-June-18-2024"]
[Site "Chess.com"]
[Date "2024.06.18"]
[Round "11"]
[White "TheAlienParty"]
[Black "elamier"]
[Result "0-1"]
[WhiteElo "2335"]
[BlackElo "2455"]
[TimeControl "180+1"]
[EndTime "10:07:58 PDT"]
[Termination "elamier won by resignation"]

1. c4 {[%clk 0:03:00.9]} 1... c6 {[%clk 0:02:59.7]} 2. Nf3 {[%clk 0:02:57.8]}
2... Nf6 {[%clk 0:02:59.2]} 3. b3 {[%clk 0:02:53.9]} 3... d5 {[%clk 0:02:59]} 4.
e3 {[%clk 0:02:53.9]} 4... e6 {[%clk 0:02:57.2]} 5. Bb2 {[%clk 0:02:53.3]} 5...
Bd6 {[%clk 0:02:57]} 6. Be2 {[%clk 0:02:53]} 6... O-O {[%clk 0:02:57.4]} 7. O-O
{[%clk 0:02:52.9]} 7... Qe7 {[%clk 0:02:54.8]} 8. Ne5 {[%clk 0:02:50.3]} 8... b6
{[%clk 0:02:52]} 9. f4 {[%clk 0:02:50.1]} 9... Bb7 {[%clk 0:02:52.2]} 10. g4
{[%clk 0:02:48.3]} 10... c5 {[%clk 0:02:45.5]} 11. Qe1 {[%clk 0:02:45.2]} 11...
Nc6 {[%clk 0:02:18.4]} 12. Qg3 {[%clk 0:02:39.2]} 12... Ne4 {[%clk 0:02:15.3]}
13. Qh3 {[%clk 0:02:37.8]} 13... Bxe5 {[%clk 0:01:18.8]} 14. fxe5 {[%clk
0:02:35]} 14... Rad8 {[%clk 0:01:16.2]} 15. d3 {[%clk 0:02:34.2]} 15... Ng5
{[%clk 0:01:15.9]} 16. Qg3 {[%clk 0:02:31.9]} 16... h6 {[%clk 0:00:51.2]} 17. h4
{[%clk 0:02:22.7]} 17... Nh7 {[%clk 0:00:51.7]} 18. Nd2 {[%clk 0:02:22.8]} 18...
d4 {[%clk 0:00:43.3]} 19. exd4 {[%clk 0:02:18.6]} 19... Nxd4 {[%clk 0:00:41.6]}
20. Bxd4 {[%clk 0:02:06.2]} 20... Rxd4 {[%clk 0:00:42.5]} 21. Nf3 {[%clk
0:02:00]} 21... Bxf3 {[%clk 0:00:41.7]} 22. Rxf3 {[%clk 0:01:59.1]} 22... f5
{[%clk 0:00:30.2]} 23. exf6 {[%clk 0:01:58.4]} 23... Rxf6 {[%clk 0:00:29.3]} 24.
Raf1 {[%clk 0:01:57]} 24... Rxf3 {[%clk 0:00:25]} 25. Rxf3 {[%clk 0:01:55.8]}
25... Nf6 {[%clk 0:00:24.5]} 26. Re3 {[%clk 0:01:55.6]} 26... Qd6 {[%clk
0:00:22.1]} 27. Kf2 {[%clk 0:01:52]} 27... Qxg3+ {[%clk 0:00:19.8]} 28. Kxg3
{[%clk 0:01:51.7]} 28... Kf7 {[%clk 0:00:20.7]} 29. Bf3 {[%clk 0:01:50.3]} 29...
g5 {[%clk 0:00:20]} 30. hxg5 {[%clk 0:01:49]} 30... hxg5 {[%clk 0:00:20.9]} 31.
Kf2 {[%clk 0:01:47.3]} 31... Nxg4+ {[%clk 0:00:20.5]} 32. Bxg4 {[%clk 0:01:47]}
32... Rxg4 {[%clk 0:00:21.4]} 33. a3 {[%clk 0:01:44.4]} 33... Kf6 {[%clk
0:00:21.2]} 34. b4 {[%clk 0:01:44.4]} 34... Rf4+ {[%clk 0:00:21.1]} 35. Ke2
{[%clk 0:01:44.3]} 35... Kf5 {[%clk 0:00:16.6]} 36. bxc5 {[%clk 0:01:44]} 36...
bxc5 {[%clk 0:00:16.6]} 37. Rh3 {[%clk 0:01:43.9]} 37... Rh4 {[%clk 0:00:16.1]}
38. Rf3+ {[%clk 0:01:43.8]} 38... Ke5 {[%clk 0:00:16.6]} 39. Rf8 {[%clk
0:01:42.9]} 39... Rh2+ {[%clk 0:00:17.3]} 40. Ke3 {[%clk 0:01:42.8]} 40... Rh3+
{[%clk 0:00:17.8]} 41. Ke2 {[%clk 0:01:42.6]} 41... Kd4 {[%clk 0:00:17.6]} 42.
Rd8+ {[%clk 0:01:42.6]} 42... Kc3 {[%clk 0:00:17.9]} 43. Rd6 {[%clk 0:01:42.5]}
43... e5 {[%clk 0:00:15.9]} 44. Rd5 {[%clk 0:01:42.3]} 44... e4 {[%clk
0:00:15.5]} 45. dxe4 {[%clk 0:01:42.2]} 45... Kxc4 {[%clk 0:00:16.1]} 46. Rxg5
{[%clk 0:01:42.7]} 46... Rxa3 {[%clk 0:00:15.4]} 47. Kd2 {[%clk 0:01:42.7]}
47... a5 {[%clk 0:00:14.3]} 48. e5 {[%clk 0:01:42]} 48... Rd3+ {[%clk
0:00:14.4]} 49. Kc2 {[%clk 0:01:42.1]} 49... Re3 {[%clk 0:00:12.5]} 50. Kb2
{[%clk 0:01:39.3]} 50... Kb4 {[%clk 0:00:11.7]} 51. Rg8 {[%clk 0:01:22.3]} 51...
Re2+ {[%clk 0:00:10.9]} 52. Kc1 {[%clk 0:01:22]} 52... Rxe5 {[%clk 0:00:11.8]}
53. Kb2 {[%clk 0:01:22.2]} 53... Re2+ {[%clk 0:00:11.5]} 54. Kc1 {[%clk
0:01:21.9]} 54... a4 {[%clk 0:00:12.4]} 55. Rb8+ {[%clk 0:01:21.5]} 55... Kc3
{[%clk 0:00:12.7]} 56. Kb1 {[%clk 0:01:21.6]} 56... a3 {[%clk 0:00:11.8]} 57.
Rb7 {[%clk 0:01:20.2]} 57... Rb2+ {[%clk 0:00:11.4]} 58. Rxb2 {[%clk 0:01:20.1]}
58... axb2 {[%clk 0:00:12.3]} 59. Ka2 {[%clk 0:01:16.6]} 59... Kc2 {[%clk
0:00:13.2]} 0-1

[Event "Early-Titled-Tuesday-Blitz-June-18-2024"]
[Site "Chess.com"]
[Date "2024.06.18"]
[Round "11"]
[White "rollercoaster29"]
[Black "GambitGiesbergen"]
[Result "1-0"]
[WhiteElo "2504"]
[BlackElo "2369"]
[TimeControl "180+1"]
[EndTime "10:08:00 PDT"]
[Termination "rollercoaster29 won by checkmate"]

1. e4 {[%clk 0:03:00.9]} 1... c5 {[%clk 0:02:58.1]} 2. Nf3 {[%clk 0:03:00.7]}
2... d6 {[%clk 0:02:58.5]} 3. d4 {[%clk 0:02:55.6]} 3... cxd4 {[%clk 0:02:58.5]}
4. Qxd4 {[%clk 0:02:56.4]} 4... Nc6 {[%clk 0:02:57.9]} 5. Qe3 {[%clk 0:02:56.3]}
5... g6 {[%clk 0:02:55.4]} 6. Be2 {[%clk 0:02:54.8]} 6... Bg7 {[%clk 0:02:55]}
7. c4 {[%clk 0:02:52.5]} 7... Nf6 {[%clk 0:02:54]} 8. O-O {[%clk 0:02:40.2]}
8... O-O {[%clk 0:02:53.6]} 9. Nc3 {[%clk 0:02:40]} 9... Nd7 {[%clk 0:02:50.7]}
10. b3 {[%clk 0:02:33.8]} 10... Nc5 {[%clk 0:02:35.4]} 11. Bb2 {[%clk
0:02:28.7]} 11... Bg4 {[%clk 0:02:11.1]} 12. Rfd1 {[%clk 0:02:19.1]} 12... Bxf3
{[%clk 0:01:51.7]} 13. Bxf3 {[%clk 0:02:16.3]} 13... Ne6 {[%clk 0:01:52.1]} 14.
Rab1 {[%clk 0:02:08]} 14... Ned4 {[%clk 0:01:44.2]} 15. Nd5 {[%clk 0:01:53.7]}
15... e6 {[%clk 0:01:16.6]} 16. Nc3 {[%clk 0:01:35.1]} 16... a6 {[%clk
0:01:00.3]} 17. Ne2 {[%clk 0:01:28.2]} 17... Nxe2+ {[%clk 0:00:56.5]} 18. Bxe2
{[%clk 0:01:28]} 18... Bxb2 {[%clk 0:00:56.9]} 19. Rxb2 {[%clk 0:01:28.9]} 19...
e5 {[%clk 0:00:56.2]} 20. Rbd2 {[%clk 0:01:14.7]} 20... Nd4 {[%clk 0:00:54.4]}
21. Rxd4 {[%clk 0:01:14.9]} 21... exd4 {[%clk 0:00:55]} 22. Rxd4 {[%clk
0:01:15.7]} 22... Qe7 {[%clk 0:00:51.3]} 23. Qd2 {[%clk 0:01:15.3]} 23... Rad8
{[%clk 0:00:48.6]} 24. f4 {[%clk 0:01:11.6]} 24... Rfe8 {[%clk 0:00:37.7]} 25.
Bf3 {[%clk 0:01:11.3]} 25... Qf6 {[%clk 0:00:36.7]} 26. g3 {[%clk 0:01:04.7]}
26... Kg7 {[%clk 0:00:36.1]} 27. Kg2 {[%clk 0:01:04.1]} 27... h6 {[%clk
0:00:35.2]} 28. Rd5 {[%clk 0:00:59.7]} 28... Qa1 {[%clk 0:00:22.6]} 29. c5
{[%clk 0:00:52]} 29... dxc5 {[%clk 0:00:04.4]} 30. Rxd8 {[%clk 0:00:51.6]} 30...
Rxd8 {[%clk 0:00:05.3]} 31. Qxd8 {[%clk 0:00:51.8]} 31... Qxa2+ {[%clk
0:00:05.9]} 32. Kh3 {[%clk 0:00:47.6]} 32... Qxb3 {[%clk 0:00:06.2]} 33. Bg4
{[%clk 0:00:22.6]} 33... h5 {[%clk 0:00:05.6]} 34. Bc8 {[%clk 0:00:20]} 34... b5
{[%clk 0:00:02.1]} 35. e5 {[%clk 0:00:18.8]} 35... a5 {[%clk 0:00:01.4]} 36.
Qf6+ {[%clk 0:00:18.5]} 36... Kg8 {[%clk 0:00:01.2]} 37. e6 {[%clk 0:00:18.1]}
37... Kf8 {[%clk 0:00:01.2]} 38. Qxf7# {[%clk 0:00:18.1]} 1-0

[Event "Early-Titled-Tuesday-Blitz-June-18-2024"]
[Site "Chess.com"]
[Date "2024.06.18"]
[Round "11"]
[White "talaicito"]
[Black "aot317"]
[Result "1-0"]
[WhiteElo "2307"]
[BlackElo "2520"]
[TimeControl "180+1"]
[EndTime "10:08:02 PDT"]
[Termination "talaicito won by resignation"]

1. d4 {[%clk 0:03:00.9]} 1... Nf6 {[%clk 0:02:59.7]} 2. Nc3 {[%clk 0:02:59.7]}
2... d5 {[%clk 0:02:59.6]} 3. Bf4 {[%clk 0:03:00.2]} 3... e6 {[%clk 0:02:59.8]}
4. e3 {[%clk 0:03:00.6]} 4... Be7 {[%clk 0:02:59.1]} 5. Nf3 {[%clk 0:02:54.7]}
5... O-O {[%clk 0:02:59]} 6. Bd3 {[%clk 0:02:52.1]} 6... c5 {[%clk 0:02:59.3]}
7. dxc5 {[%clk 0:02:52.4]} 7... Bxc5 {[%clk 0:02:55.8]} 8. O-O {[%clk
0:02:52.7]} 8... Nc6 {[%clk 0:02:55.8]} 9. e4 {[%clk 0:02:52.5]} 9... dxe4
{[%clk 0:02:47.2]} 10. Nxe4 {[%clk 0:02:53.4]} 10... Nxe4 {[%clk 0:02:47.7]} 11.
Bxe4 {[%clk 0:02:54.3]} 11... Qf6 {[%clk 0:02:48.1]} 12. Qc1 {[%clk 0:02:52.8]}
12... h6 {[%clk 0:02:43.1]} 13. c3 {[%clk 0:02:46.3]} 13... Bd7 {[%clk
0:02:32.3]} 14. Rd1 {[%clk 0:02:43.5]} 14... Rfd8 {[%clk 0:02:32.7]} 15. Bc7
{[%clk 0:02:41.7]} 15... Rac8 {[%clk 0:02:16.3]} 16. Bxd8 {[%clk 0:02:39.6]}
16... Rxd8 {[%clk 0:02:15.2]} 17. Qd2 {[%clk 0:02:19.1]} 17... e5 {[%clk
0:02:05.1]} 18. Qe2 {[%clk 0:02:16.1]} 18... Bg4 {[%clk 0:02:00.6]} 19. Rxd8+
{[%clk 0:02:10.3]} 19... Nxd8 {[%clk 0:02:00.9]} 20. h3 {[%clk 0:02:08.3]} 20...
Bc8 {[%clk 0:02:00.4]} 21. Rd1 {[%clk 0:02:04.1]} 21... Ne6 {[%clk 0:01:59.3]}
22. Nxe5 {[%clk 0:01:55.3]} 22... Nf4 {[%clk 0:01:49.2]} 23. Qf3 {[%clk
0:01:46.4]} 23... Be6 {[%clk 0:01:01.6]} 24. Nd3 {[%clk 0:01:44.1]} 24... Nxd3
{[%clk 0:00:46.3]} 25. Qxf6 {[%clk 0:01:42.7]} 25... gxf6 {[%clk 0:00:46.1]} 26.
Rxd3 {[%clk 0:01:42]} 26... b6 {[%clk 0:00:39.2]} 27. b4 {[%clk 0:01:33.4]}
27... Be7 {[%clk 0:00:38.7]} 28. a4 {[%clk 0:01:32.6]} 28... a5 {[%clk
0:00:35.4]} 29. bxa5 {[%clk 0:01:26.3]} 29... bxa5 {[%clk 0:00:36.3]} 30. g4
{[%clk 0:01:24.8]} 30... Kf8 {[%clk 0:00:30.4]} 31. Rd2 {[%clk 0:01:00.7]} 31...
Bc5 {[%clk 0:00:29.3]} 32. Rb2 {[%clk 0:00:58.7]} 32... Bd7 {[%clk 0:00:27.2]}
33. Bc2 {[%clk 0:00:53.9]} 33... Bc6 {[%clk 0:00:23.9]} 34. Rb8+ {[%clk
0:00:51.6]} 34... Ke7 {[%clk 0:00:24.3]} 35. Rc8 {[%clk 0:00:43.6]} 35... Kd6
{[%clk 0:00:22]} 36. Rh8 {[%clk 0:00:41.8]} 36... Ke5 {[%clk 0:00:20.3]} 37.
Rxh6 {[%clk 0:00:40.8]} 37... Ba3 {[%clk 0:00:20.4]} 38. Rh5+ {[%clk 0:00:38.1]}
38... Kd6 {[%clk 0:00:17.1]} 39. Rxa5 {[%clk 0:00:38.5]} 39... Bb2 {[%clk
0:00:17.8]} 40. c4 {[%clk 0:00:37.4]} 40... Bd4 {[%clk 0:00:16.8]} 41. h4 {[%clk
0:00:32.6]} 41... Bf3 {[%clk 0:00:15.3]} 42. Bf5 {[%clk 0:00:30.9]} 42... Bb6
{[%clk 0:00:13.5]} 43. Ra6 {[%clk 0:00:29.4]} 43... Kc5 {[%clk 0:00:14.1]} 44.
h5 {[%clk 0:00:28]} 44... Bb7 {[%clk 0:00:07.3]} 45. Rxb6 {[%clk 0:00:28]} 45...
Kxb6 {[%clk 0:00:07.3]} 46. h6 {[%clk 0:00:28.9]} 1-0

[Event "Early-Titled-Tuesday-Blitz-June-18-2024"]
[Site "Chess.com"]
[Date "2024.06.18"]
[Round "11"]
[White "Arteler"]
[Black "AndresDelgado77"]
[Result "0-1"]
[WhiteElo "2207"]
[BlackElo "2357"]
[TimeControl "180+1"]
[EndTime "10:08:02 PDT"]
[Termination "AndresDelgado77 won by checkmate"]

1. e4 {[%clk 0:03:00.9]} 1... c5 {[%clk 0:02:55.1]} 2. Nf3 {[%clk 0:03:00.9]}
2... a6 {[%clk 0:02:53.3]} 3. d4 {[%clk 0:02:58.4]} 3... cxd4 {[%clk 0:02:46.4]}
4. Nxd4 {[%clk 0:02:59.2]} 4... Nf6 {[%clk 0:02:42.4]} 5. e5 {[%clk 0:02:55.3]}
5... Qa5+ {[%clk 0:02:41.7]} 6. Nc3 {[%clk 0:02:50.2]} 6... Qxe5+ {[%clk
0:02:41.9]} 7. Be2 {[%clk 0:02:50.7]} 7... Nc6 {[%clk 0:02:39.2]} 8. Nf3 {[%clk
0:02:49.2]} 8... Qc7 {[%clk 0:02:33.2]} 9. O-O {[%clk 0:02:49.5]} 9... e6 {[%clk
0:02:31.3]} 10. Be3 {[%clk 0:02:39.2]} 10... b5 {[%clk 0:02:14.6]} 11. a3 {[%clk
0:02:33.9]} 11... Bb7 {[%clk 0:02:07.2]} 12. Qd2 {[%clk 0:02:29.2]} 12... d5
{[%clk 0:01:42.5]} 13. Rfe1 {[%clk 0:01:40.9]} 13... Bd6 {[%clk 0:01:39.5]} 14.
Bg5 {[%clk 0:01:33.7]} 14... Ng4 {[%clk 0:01:28.9]} 15. h3 {[%clk 0:01:29.3]}
15... Nge5 {[%clk 0:01:07.4]} 16. Nxe5 {[%clk 0:01:27]} 16... Nxe5 {[%clk
0:01:05.7]} 17. Bf4 {[%clk 0:01:06]} 17... O-O {[%clk 0:01:02.4]} 18. Bxb5
{[%clk 0:00:57]} 18... Nf3+ {[%clk 0:00:59.2]} 19. gxf3 {[%clk 0:00:50.8]} 19...
Bxf4 {[%clk 0:00:59.7]} 20. Qd4 {[%clk 0:00:32.2]} 20... axb5 {[%clk 0:00:54.9]}
21. Nxb5 {[%clk 0:00:33.1]} 21... Qb8 {[%clk 0:00:55.3]} 22. Kh1 {[%clk
0:00:32.8]} 22... e5 {[%clk 0:00:53.1]} 23. Qd1 {[%clk 0:00:16.7]} 23... Bc6
{[%clk 0:00:47.2]} 24. Nc3 {[%clk 0:00:14.8]} 24... Qxb2 {[%clk 0:00:45.6]} 25.
Nxd5 {[%clk 0:00:14.3]} 25... Rfd8 {[%clk 0:00:35.6]} 26. Ne7+ {[%clk
0:00:13.9]} 26... Kf8 {[%clk 0:00:33.4]} 27. Qe2 {[%clk 0:00:06.7]} 27... Kxe7
{[%clk 0:00:26.1]} 28. Reb1 {[%clk 0:00:07.2]} 28... Qc3 {[%clk 0:00:24]} 29.
Rb3 {[%clk 0:00:07.1]} 29... Qxa1+ {[%clk 0:00:22.3]} 30. Kg2 {[%clk 0:00:07.5]}
30... Qd4 {[%clk 0:00:22]} 31. Rd3 {[%clk 0:00:07.2]} 31... Qc5 {[%clk 0:00:19]}
32. Rb3 {[%clk 0:00:05.8]} 32... Rab8 {[%clk 0:00:16.1]} 33. Rd3 {[%clk
0:00:02.3]} 33... Rxd3 {[%clk 0:00:15.3]} 34. Qxd3 {[%clk 0:00:03.2]} 34... Qd5
{[%clk 0:00:15.2]} 35. Qf5 {[%clk 0:00:02.2]} 35... Qxf3+ {[%clk 0:00:14.5]} 36.
Kf1 {[%clk 0:00:03.1]} 36... Rb1# {[%clk 0:00:13.9]} 0-1

[Event "Early-Titled-Tuesday-Blitz-June-18-2024"]
[Site "Chess.com"]
[Date "2024.06.18"]
[Round "11"]
[White "harkerchess"]
[Black "myburger"]
[Result "1-0"]
[WhiteElo "2410"]
[BlackElo "2505"]
[TimeControl "180+1"]
[EndTime "10:08:03 PDT"]
[Termination "harkerchess won on time"]

1. Nf3 {[%clk 0:03:00.9]} 1... f5 {[%clk 0:02:57.8]} 2. d3 {[%clk 0:02:59.5]}
2... Nf6 {[%clk 0:02:58.7]} 3. e4 {[%clk 0:02:42.7]} 3... fxe4 {[%clk
0:02:58.8]} 4. dxe4 {[%clk 0:02:41.5]} 4... Nxe4 {[%clk 0:02:59.7]} 5. Bd3
{[%clk 0:02:38.7]} 5... Nf6 {[%clk 0:02:57.3]} 6. Ng5 {[%clk 0:02:35.9]} 6... d6
{[%clk 0:02:01.8]} 7. Bxh7 {[%clk 0:02:31]} 7... Rxh7 {[%clk 0:01:48.5]} 8. Nxh7
{[%clk 0:02:28.4]} 8... Bf5 {[%clk 0:01:42.2]} 9. Nxf6+ {[%clk 0:02:23.1]} 9...
exf6 {[%clk 0:01:43.1]} 10. O-O {[%clk 0:02:22.6]} 10... Nc6 {[%clk 0:01:41.8]}
11. Re1+ {[%clk 0:02:16.4]} 11... Kf7 {[%clk 0:01:41.5]} 12. Qd5+ {[%clk
0:02:13.6]} 12... Kg6 {[%clk 0:01:41.1]} 13. h4 {[%clk 0:01:57.2]} 13... Ne5
{[%clk 0:01:32.4]} 14. Qxb7 {[%clk 0:01:37]} 14... Rb8 {[%clk 0:01:25.3]} 15.
Qxa7 {[%clk 0:01:35.2]} 15... c5 {[%clk 0:01:12.2]} 16. Qa4 {[%clk 0:01:21.4]}
16... Rb4 {[%clk 0:01:06.7]} 17. Qa3 {[%clk 0:01:15.8]} 17... Rxh4 {[%clk
0:01:03.7]} 18. Nd2 {[%clk 0:01:10.7]} 18... d5 {[%clk 0:00:54]} 19. Nf3 {[%clk
0:01:09.3]} 19... Nxf3+ {[%clk 0:00:49.3]} 20. Qxf3 {[%clk 0:01:10.2]} 20... Bd6
{[%clk 0:00:42.9]} 21. Bd2 {[%clk 0:00:32.4]} 21... Bg4 {[%clk 0:00:19.6]} 22.
Qd3+ {[%clk 0:00:28.7]} 22... f5 {[%clk 0:00:13.6]} 23. Re6+ {[%clk 0:00:24.4]}
23... Kf7 {[%clk 0:00:13.6]} 24. Rae1 {[%clk 0:00:17.2]} 24... Qh8 {[%clk
0:00:12.3]} 25. f3 {[%clk 0:00:14.6]} 25... Rh1+ {[%clk 0:00:10.5]} 26. Kf2
{[%clk 0:00:14.6]} 26... Qh4+ {[%clk 0:00:06.8]} 27. Ke2 {[%clk 0:00:12.4]}
27... Kxe6 {[%clk 0:00:06.4]} 28. fxg4 {[%clk 0:00:07.5]} 28... Qxg4+ {[%clk
0:00:07.3]} 29. Kf2+ {[%clk 0:00:07.4]} 29... Rxe1 {[%clk 0:00:07.4]} 30. Bxe1
{[%clk 0:00:06.6]} 30... d4 {[%clk 0:00:05.6]} 31. Qe2+ {[%clk 0:00:06.6]} 31...
Qe4 {[%clk 0:00:05.2]} 32. Qxe4+ {[%clk 0:00:06.7]} 32... fxe4 {[%clk
0:00:06.1]} 33. a4 {[%clk 0:00:06.9]} 33... c4 {[%clk 0:00:04.9]} 34. a5 {[%clk
0:00:06.9]} 34... e3+ {[%clk 0:00:04]} 35. Ke2 {[%clk 0:00:06.7]} 35... Kd5
{[%clk 0:00:03.4]} 36. c3 {[%clk 0:00:07.2]} 1-0